[Event "XLII Barbera Open 2019"]
[Site "Barbera"]
[Date "2019.07.11"]
[Round "8.1"]
[White "Harutyunian, Tigran K."]
[Black "Rios, Cristhian Camilo"]
[Result "1-0"]
[ECO "A46"]
[WhiteElo "2539"]
[BlackElo "2520"]
[Annotator "ChessBase"]
[PlyCount "111"]
[EventDate "2019.07.04"]
[EventType "swiss"]
[EventCountry "ESP"]
[SourceTitle "playchess.com"]
[Source "ChessBase"]
[SourceQuality "1"]
[TimeControl "5400+30"]

1. d4 {[%emt 0:00:00]} Nf6 {[%emt 0:00:00]} 2. Nf3 {[%emt 0:00:00]} d5 {[%emt 0:00:00]} 3. c4 {[%emt 0:00:09]} e6 {[%emt 0:00:19]} 4. e3 {[%emt 0:01:19]} Be7 {[%emt 0:02:05]} 5. b3 {[%emt 0:00:30]} b6 {[%emt 0:00:53]} 6. Bb2 {[%emt 0:00:46]} Bb7 {[%emt 0:01:19]} 7. cxd5 {[%emt 0:01:04]} exd5 {[%emt 0:00:29]} 8. Nc3 {[%emt 0:00:35]} O-O {[%emt 0:00:49]} 9. g3 {[%emt 0:00:05]} Re8 {[%emt 0:09:16]} 10. Bg2 {[%emt 0:00:26]} Ba6 {[%emt 0:07:58]} 11. a3 {[%emt 0:06:22]} Nc6 {[%emt 0:12:33]} 12. b4 {[%emt 0:08:17]} Bb7 {[%emt 0:03:12]} 13. O-O {[%emt 0:01:37]} a6 {[%emt 0:00:23]} 14. Qb3 {[%emt 0:13:11]} Bf8 {[%emt 0:00:18]} 15. Rac1 {[%emt 0:05:19]} Qd6 {[%emt 0:08:57]} 16. Rc2 {[%emt 0:02:13]} a5 {[%emt 0:10:43]} 17. Ne5 {[%emt 0:05:53]} Nxe5 {[%emt 0:07:50]} 18. dxe5 {[%emt 0:00:46]} Qxe5 {[%emt 0:00:08]} 19. Nb5 {[%emt 0:02:10]} Qf5 {[%emt 0:00:35]} 20. Bxf6 {[%emt 0:01:05]} Ba6 {[%emt 0:03:21]} 21. Nxc7 {[%emt 0:10:35]} Bxf1 {[%emt 0:04:57]} 22. Bxf1 {[%emt 0:01:17]} Qxf6 {[%emt 0:05:52]} 23. Nxa8 {[%emt 0:01:26]} Rxa8 {[%emt 0:00:10]} 24. Qxd5 {[%emt 0:00:48]} Rd8 {[%emt 0:00:32]} 25. Qb3 {[%emt 0:02:20]} Qf3 {[%emt 0:07:05]} 26. Be2 {[%emt 0:01:32]} Qd5 {[%emt 0:00:36]} 27. Qxd5 {[%emt 0:03:17]} Rxd5 {[%emt 0:00:06]} 28. Rc7 {[%emt 0:00:24]} axb4 {[%emt 0:00:50]} 29. axb4 {[%emt 0:00:38]} Bxb4 {[%emt 0:08:19]} 30. Bc4 {[%emt 0:00:39]} Rf5 {[%emt 0:02:01]} 31. e4 {[%emt 0:00:41]} Rc5 {[%emt 0:00:07]} 32. Bxf7+ {[%emt 0:00:22]} Kf8 {[%emt 0:00:05]} 33. Rb7 {[%emt 0:02:01]} Rc2 {[%emt 0:00:15]} 34. Bd5 {[%emt 0:04:27]} Bc5 {[%emt 0:00:07]} 35. Rf7+ {[%emt 0:00:23]} Ke8 {[%emt 0:00:07]} 36. h4 {[%emt 0:02:23]} h6 {[%emt 0:03:31]} 37. Kg2 {[%emt 0:01:16]} Bd4 {[%emt 0:00:56]} 38. g4 {[%emt 0:00:21]} Bf6 {[%emt 0:00:50]} 39. Kg3 {[%emt 0:05:20]} Rd2 {[%emt 0:00:15]} 40. Rb7 {[%emt 0:03:36]} Be5+ {[%emt 0:00:23]} 41. f4 {[%emt 0:00:45]} Rd3+ {[%emt 0:00:10]} 42. Kf2 {[%emt 0:00:16]} Bxf4 {[%emt 0:00:18]} 43. Rxg7 {[%emt 0:00:07]} Rh3 {[%emt 0:00:24]} 44. g5 {[%emt 0:00:52]} hxg5 {[%emt 0:01:26]} 45. hxg5 {[%emt 0:00:04]} Be5 {[%emt 0:00:14]} 46. Rb7 {[%emt 0:01:12]} Rg3 {[%emt 0:01:06]} 47. g6 {[%emt 0:00:34]} Rg5 {[%emt 0:00:17]} 48. Ke2 {[%emt 0:01:29]} Kf8 {[%emt 0:00:47]} 49. Rf7+ {[%emt 0:02:13]} Ke8 {[%emt 0:00:14]} 50. Bc6+ {[%emt 0:00:05]} Kd8 {[%emt 0:00:08]} 51. Rd7+ {[%emt 0:00:06]} Kc8 {[%emt 0:00:21]} 52. Rd5 {[%emt 0:00:21]} Rg2+ {[%emt 0:00:49]} 53. Kf1 {[%emt 0:00:34]} Rg5 {[%emt 0:00:20]} 54. Be8 {[%emt 0:01:08]} b5 {[%emt 0:01:06]} 55. Bf7 {[%emt 0:00:14]} b4 {[%emt 0:00:33]} 56. Rxe5 {[%emt 0:00:11]} 1-0

[Event "XLII Barbera Open 2019"]
[Site "Barbera"]
[Date "2019.07.11"]
[Round "8.2"]
[White "Peralta, Fernando"]
[Black "Sturt, Raven"]
[Result "1-0"]
[ECO "D48"]
[WhiteElo "2562"]
[BlackElo "2429"]
[Annotator "ChessBase"]
[PlyCount "117"]
[EventDate "2019.07.04"]
[EventType "swiss"]
[EventCountry "ESP"]
[SourceTitle "playchess.com"]
[Source "ChessBase"]
[SourceQuality "1"]
[TimeControl "5400+30"]

1. d4 {[%emt 0:00:00]} d5 {[%emt 0:00:00]} 2. c4 {[%emt 0:00:00]} c6 {[%emt 0:00:00]} 3. Nf3 {[%emt 0:00:18]} Nf6 {[%emt 0:00:00]} 4. Nc3 {[%emt 0:00:06]} e6 {[%emt 0:00:00]} 5. e3 {[%emt 0:00:26]} Nbd7 {[%emt 0:00:00]} 6. Bd3 {[%emt 0:02:06]} dxc4 {[%emt 0:00:00]} 7. Bxc4 {[%emt 0:00:04]} b5 {[%emt 0:00:01]} 8. Bd3 {[%emt 0:00:06]} a6 {[%emt 0:00:04]} 9. e4 {[%emt 0:00:32]} c5 {[%emt 0:00:05]} 10. d5 {[%emt 0:00:05]} Qc7 {[%emt 0:02:52]} 11. O-O {[%emt 0:00:50]} Bb7 {[%emt 0:00:18]} 12. dxe6 {[%emt 0:01:06]} fxe6 {[%emt 0:00:03]} 13. Ng5 {[%emt 0:00:16]} Qc6 {[%emt 0:08:34]} 14. Be2 {[%emt 0:01:01]} b4 {[%emt 0:21:43]} 15. Na4 {[%emt 0:04:04]} h6 {[%emt 0:02:31]} 16. Bh5+ {[%emt 0:06:08]} Ke7 {[%emt 0:03:44]} 17. Nf7 {[%emt 0:02:10]} Nxh5 {[%emt 0:00:50]} 18. Nxh8 {[%emt 0:02:03]} Qxe4 {[%emt 0:00:14]} 19. f3 {[%emt 0:00:41]} Qh7 {[%emt 0:08:13]} 20. Be3 {[%emt 0:00:54]} Qxh8 {[%emt 0:12:14]} 21. Nxc5 {[%emt 0:05:16]} Bd5 {[%emt 0:01:22]} 22. Nxd7 {[%emt 0:13:11]} Kxd7 {[%emt 0:00:01]} 23. Qa4+ {[%emt 0:00:12]} Ke7 {[%emt 0:00:23]} 24. Rac1 {[%emt 0:06:18]} Kf7 {[%emt 0:01:09]} 25. Rc7+ {[%emt 0:03:30]} Be7 {[%emt 0:13:48]} 26. Bc5 {[%emt 0:02:57]} Re8 {[%emt 0:00:09]} 27. Bxb4 {[%emt 0:04:55]} g5 {[%emt 0:02:09]} 28. Bc3 {[%emt 0:16:41]} Qh7 {[%emt 0:00:25]} 29. Qxa6 {[%emt 0:00:12]} Qc2 {[%emt 0:03:32]} 30. Qa7 {[%emt 0:17:40]} Nf4 {[%emt 0:02:17]} 31. Qf2 {[%emt 0:00:12]} Qa4 {[%emt 0:01:25]} 32. b3 {[%emt 0:03:54]} Qa6 {[%emt 0:00:01]} 33. Kh1 {[%emt 0:01:07]} Rc8 {[%emt 0:05:31]} 34. Rxc8 {[%emt 0:01:54]} Qxc8 {[%emt 0:00:01]} 35. Qd2 {[%emt 0:01:33]} h5 {[%emt 0:00:39]} 36. h4 {[%emt 0:01:12]} Qa6 {[%emt 0:00:15]} 37. Re1 {[%emt 0:00:50]} Qc6 {[%emt 0:05:11]} 38. hxg5 {[%emt 0:02:47]} Bxg5 {[%emt 0:00:30]} 39. Be5 {[%emt 0:01:15]} Nh3 {[%emt 0:03:21]} 40. Qe2 h4 {[%emt 0:02:37]} 41. Kh2 {[%emt 0:01:22]} Nf4 {[%emt 0:02:37]} 42. Qd2 {[%emt 0:00:09]} Nxg2 {[%emt 0:00:28]} 43. Qxg2 {[%emt 0:00:20]} Be7 {[%emt 0:00:05]} 44. Rf1 {[%emt 0:00:47]} Ke8 {[%emt 0:00:17]} 45. Qe2 {[%emt 0:00:38]} Qc5 {[%emt 0:00:33]} 46. Rf2 {[%emt 0:00:37]} Qc1 {[%emt 0:00:49]} 47. Rf1 {[%emt 0:00:24]} Qc5 {[%emt 0:00:08]} 48. Kh3 {[%emt 0:00:33]} Qc6 {[%emt 0:00:48]} 49. Qd3 {[%emt 0:00:18]} Qb6 {[%emt 0:00:38]} 50. Rc1 {[%emt 0:00:38]} Bc6 {[%emt 0:01:41]} 51. Qg6+ {[%emt 0:00:15]} Kd7 {[%emt 0:00:04]} 52. Rd1+ {[%emt 0:00:06]} Kc8 {[%emt 0:00:37]} 53. Qxe6+ {[%emt 0:00:11]} Kb7 {[%emt 0:00:05]} 54. Qxe7+ {[%emt 0:00:09]} Ka6 {[%emt 0:00:04]} 55. Qa3+ {[%emt 0:00:42]} Kb7 {[%emt 0:00:01]} 56. Qe7+ {[%emt 0:00:23]} Ka6 57. Rd6 {[%emt 0:01:06]} Qb5 {[%emt 0:00:12]} 58. Rxc6+ {[%emt 0:00:17]} Qxc6 {[%emt 0:00:01]} 59. Qf6 {[%emt 0:01:14]} 1-0

[Event "XLII Barbera Open 2019"]
[Site "Barbera"]
[Date "2019.07.11"]
[Round "8.3"]
[White "Munoz, Miguel"]
[Black "Diaz Hernandez, Heriberto"]
[Result "1/2-1/2"]
[ECO "C44"]
[WhiteElo "2511"]
[BlackElo "2353"]
[Annotator "ChessBase"]
[PlyCount "51"]
[EventDate "2019.07.04"]
[EventType "swiss"]
[EventCountry "ESP"]
[SourceTitle "playchess.com"]
[Source "ChessBase"]
[SourceQuality "1"]
[TimeControl "5400+30"]

1. e4 {[%emt 0:14:04]} e5 {[%emt 0:00:00]} 2. Nf3 {[%emt 0:00:54]} Nc6 {[%emt 0:00:00]} 3. d4 {[%emt 0:00:11]} exd4 {[%emt 0:00:05]} 4. Nxd4 {[%emt 0:00:05]} Qf6 {[%emt 0:00:25]} 5. Be3 Bc5 {[%emt 0:00:12]} 6. c3 {[%emt 0:01:15]} Nge7 {[%emt 0:00:05]} 7. Bc4 {[%emt 0:00:45]} Ne5 {[%emt 0:00:06]} 8. Be2 {[%emt 0:00:21]} Qg6 {[%emt 0:04:51]} 9. O-O {[%emt 0:06:06]} d6 10. Kh1 {[%emt 0:06:49]} Qxe4 {[%emt 0:02:01]} 11. Nd2 {[%emt 0:00:08]} Qg6 {[%emt 0:00:05]} 12. Nb5 {[%emt 0:01:49]} O-O {[%emt 0:04:27]} 13. Nxc7 {[%emt 0:05:00]} Rb8 {[%emt 0:00:11]} 14. Nc4 {[%emt 0:02:08]} Nxc4 {[%emt 0:23:41]} 15. Bxc4 Bd7 {[%emt 0:23:13]} 16. Bd3 {[%emt 0:03:47]} Bf5 {[%emt 0:00:46]} 17. Bxf5 {[%emt 0:06:01]} Qxf5 {[%emt 0:03:00]} 18. Re1 {[%emt 0:00:58]} Rfd8 {[%emt 0:11:34]} 19. Qb3 Rd7 {[%emt 0:00:06]} 20. Nb5 {[%emt 0:11:23]} Nc6 21. Rad1 {[%emt 0:05:16]} a6 {[%emt 0:04:35]} 22. Nd4 {[%emt 0:02:28]} Bxd4 {[%emt 0:00:25]} 23. cxd4 {[%emt 0:00:22]} d5 {[%emt 0:00:05]} 24. f3 Re8 {[%emt 0:01:06]} 25. Bf2 {[%emt 0:00:49]} Rxe1+ {[%emt 0:03:19]} 26. Rxe1 {[%emt 0:02:55]} 1/2-1/2

[Event "XLII Barbera Open 2019"]
[Site "Barbera"]
[Date "2019.07.11"]
[Round "8.4"]
[White "Harikrishnan.A.Ra"]
[Black "Moskalenko, Viktor"]
[Result "0-1"]
[ECO "A05"]
[WhiteElo "2401"]
[BlackElo "2500"]
[Annotator "ChessBase"]
[PlyCount "118"]
[EventDate "2019.07.04"]
[EventType "swiss"]
[EventCountry "ESP"]
[SourceTitle "playchess.com"]
[Source "ChessBase"]
[SourceQuality "1"]
[TimeControl "5400+30"]

1. Nf3 {[%emt 0:00:00]} Nf6 {[%emt 0:00:04]} 2. g3 {[%emt 0:00:00]} g6 {[%emt 0:00:19]} 3. Bg2 {[%emt 0:00:11]} Bg7 {[%emt 0:00:05]} 4. O-O {[%emt 0:00:13]} O-O {[%emt 0:00:05]} 5. d4 {[%emt 0:00:11]} d6 {[%emt 0:08:31]} 6. c4 {[%emt 0:00:11]} Nfd7 {[%emt 0:13:35]} 7. Nc3 {[%emt 0:02:38]} e5 {[%emt 0:00:16]} 8. dxe5 {[%emt 0:04:44]} dxe5 {[%emt 0:01:48]} 9. Be3 {[%emt 0:00:38]} Nc6 {[%emt 0:02:40]} 10. Qc1 {[%emt 0:01:33]} Nd4 {[%emt 0:02:54]} 11. Bh6 {[%emt 0:02:41]} Nxf3+ {[%emt 0:04:14]} 12. exf3 {[%emt 0:02:16]} c6 {[%emt 0:00:33]} 13. Bxg7 {[%emt 0:02:16]} Kxg7 {[%emt 0:00:22]} 14. f4 {[%emt 0:01:35]} Qc7 {[%emt 0:01:24]} 15. fxe5 {[%emt 0:07:53]} Nxe5 {[%emt 0:01:57]} 16. Ne4 {[%emt 0:09:02]} Bf5 {[%emt 0:03:32]} 17. Qc3 {[%emt 0:00:55]} Bxe4 {[%emt 0:03:49]} 18. Bxe4 {[%emt 0:00:04]} f6 {[%emt 0:11:05]} 19. Rad1 {[%emt 0:02:48]} Rad8 {[%emt 0:00:38]} 20. c5 {[%emt 0:02:30]} Rxd1 {[%emt 0:00:52]} 21. Rxd1 {[%emt 0:03:35]} Rd8 {[%emt 0:00:02]} 22. Qb3 {[%emt 0:04:54]} Rxd1+ {[%emt 0:01:17]} 23. Qxd1 {[%emt 0:00:02]} Qa5 {[%emt 0:02:39]} 24. Bc2 {[%emt 0:21:26]} Qxc5 {[%emt 0:05:54]} 25. Kg2 {[%emt 0:02:52]} Qd5+ {[%emt 0:08:38]} 26. Qxd5 {[%emt 0:00:08]} cxd5 {[%emt 0:00:02]} 27. Bb3 {[%emt 0:01:06]} d4 {[%emt 0:00:12]} 28. Kf1 {[%emt 0:03:50]} g5 {[%emt 0:19:06]} 29. h3 {[%emt 0:01:22]} f5 {[%emt 0:00:51]} 30. Ke2 {[%emt 0:04:09]} f4 {[%emt 0:00:04]} 31. Bd5 {[%emt 0:00:16]} b6 {[%emt 0:00:14]} 32. h4 {[%emt 0:00:47]} h6 {[%emt 0:04:18]} 33. hxg5 {[%emt 0:00:01]} hxg5 {[%emt 0:00:04]} 34. gxf4 {[%emt 0:00:08]} gxf4 {[%emt 0:00:02]} 35. Be4 {[%emt 0:00:30]} Kf6 {[%emt 0:00:05]} 36. b4 {[%emt 0:02:23]} Nf7 {[%emt 0:03:41]} 37. Kd3 {[%emt 0:00:30]} Ke5 {[%emt 0:00:01]} 38. Bg6 {[%emt 0:00:48]} Nd6 {[%emt 0:00:26]} 39. Bh7 {[%emt 0:01:09]} Nb5 {[%emt 0:00:12]} 40. Bg8 {[%emt 0:02:21]} Nc3 {[%emt 0:00:10]} 41. f3 {[%emt 0:00:45]} Nd5 {[%emt 0:00:32]} 42. a3 {[%emt 0:00:00]} Nc3 {[%emt 0:00:05]} 43. Bb3 {[%emt 0:00:39]} Nb5 {[%emt 0:00:30]} 44. a4 {[%emt 0:00:05]} Nc3 {[%emt 0:00:55]} 45. Kc4 {[%emt 0:02:37]} Nd5 {[%emt 0:01:14]} 46. Ba2 {[%emt 0:00:44]} Ne3+ {[%emt 0:00:45]} 47. Kd3 {[%emt 0:00:28]} Nd5 {[%emt 0:00:11]} 48. Kc4 {[%emt 0:00:07]} d3 {[%emt 0:00:58]} 49. Bb3 {[%emt 0:00:14]} d2 {[%emt 0:00:02]} 50. a5 {[%emt 0:00:28]} bxa5 {[%emt 0:00:29]} 51. bxa5 {[%emt 0:00:01]} Ne3+ {[%emt 0:00:13]} 52. Kc5 {[%emt 0:00:45]} d1=Q {[%emt 0:00:35]} 53. Bxd1 {[%emt 0:00:01]} Nxd1 {[%emt 0:00:03]} 54. Kc6 {[%emt 0:00:09]} Nc3 {[%emt 0:00:45]} 55. Kb7 {[%emt 0:00:26]} Kd6 {[%emt 0:00:46]} 56. Kxa7 {[%emt 0:00:46]} Kc6 {[%emt 0:01:02]} 57. Kb8 {[%emt 0:00:57]} Nb5 {[%emt 0:00:57]} 58. Kc8 {[%emt 0:00:05]} Nd4 {[%emt 0:00:25]} 59. Kb8 {[%emt 0:00:18]} Kb5 {[%emt 0:00:06]} 0-1

[Event "XLII Barbera Open 2019"]
[Site "Barbera"]
[Date "2019.07.11"]
[Round "8.5"]
[White "Oliva Castaneda, Kevel"]
[Black "Valenzuela Gomez, Fernando"]
[Result "1-0"]
[ECO "E90"]
[WhiteElo "2467"]
[BlackElo "2394"]
[Annotator "ChessBase"]
[PlyCount "103"]
[EventDate "2019.07.04"]
[EventType "swiss"]
[EventCountry "ESP"]
[SourceTitle "playchess.com"]
[Source "ChessBase"]
[SourceQuality "1"]
[TimeControl "5400+30"]

1. d4 {[%emt 0:00:22]} Nf6 {[%emt 0:13:13]} 2. c4 {[%emt 0:00:07]} g6 {[%emt 0:00:12]} 3. Nc3 {[%emt 0:00:28]} Bg7 {[%emt 0:00:12]} 4. e4 {[%emt 0:00:12]} d6 {[%emt 0:00:05]} 5. Nf3 {[%emt 0:00:06]} O-O {[%emt 0:00:12]} 6. h3 {[%emt 0:00:03]} Nbd7 {[%emt 0:00:28]} 7. Be3 {[%emt 0:01:11]} e5 {[%emt 0:00:43]} 8. d5 {[%emt 0:00:07]} Nc5 {[%emt 0:00:42]} 9. Nd2 {[%emt 0:00:11]} a5 {[%emt 0:00:06]} 10. g4 {[%emt 0:00:31]} c6 {[%emt 0:00:51]} 11. Be2 {[%emt 0:01:20]} a4 {[%emt 0:00:08]} 12. a3 {[%emt 0:01:01]} Qa5 {[%emt 0:04:16]} 13. Kf1 {[%emt 0:05:58]} Bd7 {[%emt 0:01:49]} 14. h4 {[%emt 0:02:45]} cxd5 {[%emt 0:07:50]} 15. cxd5 {[%emt 0:02:37]} b5 {[%emt 0:01:08]} 16. h5 {[%emt 0:00:03]} Rab8 {[%emt 0:21:59]} 17. g5 {[%emt 0:00:41]} Ne8 {[%emt 0:00:07]} 18. hxg6 {[%emt 0:00:09]} fxg6 19. Na2 {[%emt 0:00:54]} Qd8 {[%emt 0:07:12]} 20. Nb4 {[%emt 0:17:19]} Nc7 {[%emt 0:02:10]} 21. Bg4 {[%emt 0:03:25]} Rf7 {[%emt 0:02:50]} 22. Kg2 {[%emt 0:05:38]} Qc8 {[%emt 0:02:20]} 23. Bxd7 {[%emt 0:02:12]} Qxd7 {[%emt 0:00:32]} 24. Rh4 {[%emt 0:00:32]} N7a6 {[%emt 0:06:04]} 25. Nc6 {[%emt 0:00:40]} Rbf8 {[%emt 0:01:41]} 26. Qe2 {[%emt 0:00:21]} Nc7 {[%emt 0:01:48]} 27. Rah1 {[%emt 0:05:43]} Bh8 {[%emt 0:00:04]} 28. f3 {[%emt 0:02:29]} h5 {[%emt 0:04:01]} 29. gxh6 {[%emt 0:05:10]} Kh7 {[%emt 0:00:04]} 30. R4h3 Qe8 {[%emt 0:02:34]} 31. Rc1 {[%emt 0:07:54]} Nd7 {[%emt 0:03:56]} 32. Nb4 {[%emt 0:05:17]} Nf6 {[%emt 0:01:37]} 33. Nf1 {[%emt 0:01:45]} Nh5 {[%emt 0:01:01]} 34. Ng3 {[%emt 0:01:44]} Nf4+ {[%emt 0:00:53]} 35. Bxf4 {[%emt 0:00:05]} exf4 {[%emt 0:00:05]} 36. Nh1 {[%emt 0:01:10]} Qe7 {[%emt 0:00:58]} 37. Nf2 {[%emt 0:00:16]} Ne8 {[%emt 0:01:47]} 38. Nc6 {[%emt 0:00:36]} Qf6 {[%emt 0:01:51]} 39. Rc2 {[%emt 0:00:40]} Qg5+ {[%emt 0:00:29]} 40. Kh2 {[%emt 0:00:56]} Nf6 {[%emt 0:01:52]} 41. Qxb5 {[%emt 0:00:24]} Nh5 {[%emt 0:00:43]} 42. Qxa4 {[%emt 0:01:28]} Ng3 {[%emt 0:01:09]} 43. Qc4 {[%emt 0:02:11]} Kg8 {[%emt 0:03:44]} 44. Ng4 {[%emt 0:04:20]} Re8 {[%emt 0:00:07]} 45. Nd4 {[%emt 0:01:21]} Bxd4 {[%emt 0:02:21]} 46. Qxd4 {[%emt 0:00:06]} Kh7 {[%emt 0:00:42]} 47. Rc7 {[%emt 0:02:58]} Rxc7 {[%emt 0:02:27]} 48. Nf6+ {[%emt 0:00:06]} Qxf6 {[%emt 0:00:33]} 49. Qxf6 {[%emt 0:00:04]} Rc2+ {[%emt 0:00:35]} 50. Kg1 {[%emt 0:00:04]} Rc1+ {[%emt 0:00:46]} 51. Kf2 {[%emt 0:00:07]} Rc2+ {[%emt 0:00:58]} 52. Ke1 1-0

[Event "XLII Barbera Open 2019"]
[Site "Barbera"]
[Date "2019.07.11"]
[Round "8.6"]
[White "Berdayes Ason, Dylan Isidro"]
[Black "Vehi Bach, Victor Manuel"]
[Result "1/2-1/2"]
[ECO "B81"]
[WhiteElo "2461"]
[BlackElo "2339"]
[Annotator "ChessBase"]
[PlyCount "76"]
[EventDate "2019.07.04"]
[EventType "swiss"]
[EventCountry "ESP"]
[SourceTitle "playchess.com"]
[Source "ChessBase"]
[SourceQuality "1"]
[TimeControl "5400+30"]

1. e4 {[%emt 0:16:44]} c5 {[%emt 0:00:00]} 2. Nf3 {[%emt 0:00:07]} e6 {[%emt 0:00:00]} 3. d4 {[%emt 0:00:03]} cxd4 {[%emt 0:00:00]} 4. Nxd4 {[%emt 0:00:02]} Nf6 {[%emt 0:00:05]} 5. Nc3 {[%emt 0:00:02]} d6 {[%emt 0:00:07]} 6. g4 {[%emt 0:00:02]} h6 {[%emt 0:02:09]} 7. h4 {[%emt 0:00:03]} Nc6 {[%emt 0:00:07]} 8. Rg1 {[%emt 0:00:05]} d5 {[%emt 0:00:34]} 9. exd5 {[%emt 0:00:02]} Nxd5 {[%emt 0:00:09]} 10. Nxd5 {[%emt 0:00:02]} exd5 {[%emt 0:00:21]} 11. Be3 {[%emt 0:08:12]} Be7 {[%emt 0:11:47]} 12. Bb5 {[%emt 0:16:12]} Bd7 {[%emt 0:00:37]} 13. Qe2 {[%emt 0:01:46]} O-O {[%emt 0:02:14]} 14. O-O-O {[%emt 0:09:01]} Nxd4 {[%emt 0:01:13]} 15. Bxd4 {[%emt 0:06:57]} Bxh4 16. Be3 Bxb5 {[%emt 0:37:21]} 17. Qxb5 {[%emt 0:00:32]} Qc7 {[%emt 0:00:39]} 18. Rxd5 {[%emt 0:13:17]} a6 {[%emt 0:01:27]} 19. Qd3 {[%emt 0:01:29]} Rad8 20. Rh1 {[%emt 0:00:02]} Qc6 {[%emt 0:03:41]} 21. Rd1 {[%emt 0:00:02]} Rxd5 22. Qxd5 Qxd5 {[%emt 0:08:37]} 23. Rxd5 Rd8 {[%emt 0:00:00]} 24. Rxd8+ {[%emt 0:03:16]} Bxd8 {[%emt 0:03:02]} 25. Kd2 {[%emt 0:02:40]} Kh7 {[%emt 0:01:15]} 26. Kd3 {[%emt 0:08:21]} Kg6 27. Ke4 h5 {[%emt 0:00:47]} 28. gxh5+ {[%emt 0:00:31]} Kxh5 {[%emt 0:06:49]} 29. c4 {[%emt 0:02:34]} g6 {[%emt 0:00:12]} 30. b4 {[%emt 0:03:45]} f5+ 31. Kd5 {[%emt 0:01:55]} Kg4 {[%emt 0:06:40]} 32. c5 {[%emt 0:00:12]} f4 {[%emt 0:00:41]} 33. Bd4 {[%emt 0:01:35]} Kf3 {[%emt 0:03:20]} 34. a4 {[%emt 0:02:37]} g5 35. b5 {[%emt 0:00:01]} axb5 {[%emt 0:00:39]} 36. axb5 {[%emt 0:03:44]} g4 37. b6 {[%emt 0:00:02]} g3 {[%emt 0:01:34]} 38. fxg3 fxg3 {Ke4+} 1/2-1/2

[Event "XLII Barbera Open 2019"]
[Site "Barbera"]
[Date "2019.07.11"]
[Round "8.7"]
[White "Bobadilla Viera, Jorge Samuel"]
[Black "Perez Mitjans, Orelvis"]
[Result "1/2-1/2"]
[ECO "E62"]
[WhiteElo "2381"]
[BlackElo "2416"]
[Annotator "NA"]
[PlyCount "89"]
[EventDate "2019.07.04"]
[EventType "swiss"]
[EventCountry "ESP"]
[SourceTitle "playchess.com"]
[Source "ChessBase"]
[SourceQuality "1"]
[TimeControl "5400+30"]

1. Nf3 {[%emt 0:02:02]} Nf6 {[%emt 0:14:56]} 2. c4 {[%emt 0:00:30]} g6 {[%emt 0:00:15]} 3. g3 {[%emt 0:01:13]} Bg7 {[%emt 0:00:10]} 4. Bg2 {[%emt 0:00:06]} O-O {[%emt 0:00:06]} 5. O-O {[%emt 0:00:03]} d6 {[%emt 0:01:29]} 6. d4 {[%emt 0:00:06]} Nc6 {[%emt 0:00:08]} 7. Nc3 Bg4 {[%emt 0:01:12]} 8. d5 {[%emt 0:02:56]} Na5 {[%emt 0:00:26]} 9. Nd2 {[%emt 0:04:40]} c5 {[%emt 0:00:14]} 10. Qc2 {[%emt 0:00:24]} a6 {[%emt 0:00:32]} 11. h3 Bd7 {[%emt 0:01:45]} 12. b3 {[%emt 0:01:33]} b5 {[%emt 0:00:14]} 13. Bb2 {[%emt 0:00:10]} Rb8 {[%emt 0:02:44]} 14. Rab1 {[%emt 0:00:03]} Qc7 {[%emt 0:19:19]} 15. Ba1 {[%emt 0:20:32]} e5 {[%emt 0:14:47]} 16. dxe6 {[%emt 0:01:48]} Bxe6 {[%emt 0:02:04]} 17. Nd5 {[%emt 0:03:15]} Bxd5 {[%emt 0:01:33]} 18. cxd5 {[%emt 0:02:23]} Nb7 {[%emt 0:00:35]} 19. Bc3 {[%emt 0:04:13]} Rbe8 {[%emt 0:01:52]} 20. Qb2 {[%emt 0:13:28]} Nh5 {[%emt 0:07:02]} 21. Bxg7 {[%emt 0:00:30]} Nxg7 {[%emt 0:00:06]} 22. Ne4 {[%emt 0:00:12]} Kh8 {[%emt 0:00:01]} 23. Nf6 {[%emt 0:06:48]} Re5 {[%emt 0:00:50]} 24. e4 {[%emt 0:01:36]} b4 {[%emt 0:07:43]} 25. f4 {[%emt 0:06:10]} Re7 {[%emt 0:00:02]} 26. Rbc1 {[%emt 0:01:24]} Rc8 {[%emt 0:04:58]} 27. Kh2 {[%emt 0:01:01]} Qd8 {[%emt 0:00:23]} 28. h4 {[%emt 0:06:39]} c4 {[%emt 0:02:23]} 29. bxc4 {[%emt 0:00:09]} Nc5 {[%emt 0:00:37]} 30. h5 {[%emt 0:09:38]} gxh5 {[%emt 0:03:33]} 31. Nxh5 {[%emt 0:00:30]} f6 {[%emt 0:02:04]} 32. Qxf6 {[%emt 0:01:08]} Qe8 {[%emt 0:01:00]} 33. Nxg7 {[%emt 0:02:07]} Rxg7 {[%emt 0:00:02]} 34. Rce1 {[%emt 0:05:33]} Qh5+ {[%emt 0:03:53]} 35. Qh4 {[%emt 0:00:52]} Qxh4+ {[%emt 0:00:23]} 36. gxh4 {[%emt 0:00:01]} Nd3 {[%emt 0:00:15]} 37. Re3 {[%emt 0:00:33]} Nb2 {[%emt 0:00:06]} 38. Rb3 {[%emt 0:03:01]} Nxc4 {[%emt 0:00:32]} 39. Rxb4 {[%emt 0:00:02]} Ne3 {[%emt 0:00:23]} 40. Rg1 {[%emt 0:00:44]} Ng4+ {[%emt 0:05:39]} 41. Kh1 {[%emt 0:00:01]} Nf2+ {[%emt 0:00:15]} 42. Kh2 {[%emt 0:00:04]} Ng4+ {[%emt 0:00:11]} 43. Kh1 {[%emt 0:00:01]} Nf2+ {[%emt 0:00:15]} 44. Kh2 {[%emt 0:00:03]} Ng4+ {[%emt 0:00:08]} 45. Kh1 {[%emt 0:00:03]} 1/2-1/2